Workbook

Sheet ДТ ЛИв
A1: FS | B1: BI
A2: 12 | B2: 10 | D2: FS | E2: BI | F2: FS | G2: BI | H2: FS | I2: BI | J2: FS | K2: BI | L2: FS | M2: BI | N2: FS | O2: BI
A3: Place | B3: Points | D3: 6 | E3: 30 | F3: 8 | G3: 20 | H3: 13 | I3: 10 | J3: 14 | K3: 8 | L3: 18 | M3: 5 | N3: 21 | O3: 3
A4: 1 | B4: =10*SQRT((A$2+12)/(A4+1))*(1+LOG10(B$2+4)) -> 74.34405595 | D4: =10*SQRT((D$3+12)/($A4+1))*(1+LOG10(E$3+4)) -> 75.94436751 | F4: =10*SQRT((F$3+12)/($A4+1))*(1+LOG10(G$3+4)) -> 75.26888836 | H4: =10*SQRT((H$3+12)/($A4+1))*(1+LOG10(I$3+4)) -> 75.87708437 | J4: =10*SQRT((J$3+12)/($A4+1))*(1+LOG10(K$3+4)) -> 74.96594594 | L4: =10*SQRT((L$3+12)/($A4+1))*(1+LOG10(M$3+4)) -> 75.68748694 | N4: =10*SQRT((N$3+12)/($A4+1))*(1+LOG10(O$3+4)) -> 74.94823669
A5: 2 | B5: =10*SQRT((A$2+12)/(A5+1))*(1+LOG10(B$2+4)) -> 60.70166749 | D5: =10*SQRT((D$3+12)/($A5+1))*(1+LOG10(E$3+4)) -> 62.00831641 | F5: =10*SQRT((F$3+12)/($A5+1))*(1+LOG10(G$3+4)) -> 61.45679 | H5: =10*SQRT((H$3+12)/($A5+1))*(1+LOG10(I$3+4)) -> 61.95337996 | J5: =10*SQRT((J$3+12)/($A5+1))*(1+LOG10(K$3+4)) -> 61.20943854 | L5: =10*SQRT((L$3+12)/($A5+1))*(1+LOG10(M$3+4)) -> 61.7985743 | N5: =10*SQRT((N$3+12)/($A5+1))*(1+LOG10(O$3+4)) -> 61.194979
A6: 3 | B6: 52.5691861 | D6: 53.70077726 | F6: =10*SQRT((F$3+12)/($A6+1))*(1+LOG10(G$3+4)) -> 53.22314137 | H6: =10*SQRT((H$3+12)/($A6+1))*(1+LOG10(I$3+4)) -> 53.65320089 | J6: =10*SQRT((J$3+12)/($A6+1))*(1+LOG10(K$3+4)) -> 53.00892873 | L6: =10*SQRT((L$3+12)/($A6+1))*(1+LOG10(M$3+4)) -> 53.51913526 | N6: =10*SQRT((N$3+12)/($A6+1))*(1+LOG10(O$3+4)) -> 52.9964064
A7: 4 | B7: 47.01930946 | D7: 48.03143536 | F7: =10*SQRT((F$3+12)/($A7+1))*(1+LOG10(G$3+4)) -> 47.60422483 | H7: =10*SQRT((H$3+12)/($A7+1))*(1+LOG10(I$3+4)) -> 47.98888176 | J7: =10*SQRT((J$3+12)/($A7+1))*(1+LOG10(K$3+4)) -> 47.41262722 | L7: =10*SQRT((L$3+12)/($A7+1))*(1+LOG10(M$3+4)) -> 47.86896982 | N7: =10*SQRT((N$3+12)/($A7+1))*(1+LOG10(O$3+4)) -> 47.40142691
A8: 5 | B8: 42.92256071 | D8: 43.84650103 | F8: =10*SQRT((F$3+12)/($A8+1))*(1+LOG10(G$3+4)) -> 43.45651296 | H8: =10*SQRT((H$3+12)/($A8+1))*(1+LOG10(I$3+4)) -> 43.80765508 | J8: =10*SQRT((J$3+12)/($A8+1))*(1+LOG10(K$3+4)) -> 43.28160907 | L8: =10*SQRT((L$3+12)/($A8+1))*(1+LOG10(M$3+4)) -> 43.69819096 | N8: =10*SQRT((N$3+12)/($A8+1))*(1+LOG10(O$3+4)) -> 43.27138463
A9: блок для расчёта отдельного турнира | D9: Таблица для сравнения нескольких типовых турниров
A11: В жёлтые клетки вписываете значения кол-ва игроков (FS) и байина (BI) - очки рассчитываются автоматически
